bitfinex/quotes_ETHUSD_20241105
["timestamp","ask_amount","ask_price","bid_price","bid_amount"]
[1730833083406,14.47303291,2456.1,2455.8,8.14387]
[1730833083713,13.23923642,2456.1,2455.9,4.07181]
[1730833083899,13.23923642,2456.1,2455.8,4.07188]
[1730833084416,0.00893642,2455.9,2455.8,8.14378]
[1730833084722,12.43,2456.1,2456.0,4.07166]
[1730833084886,1.62430967,2456.4,2456.0,4.07166]
[1730833085222,0.00893642,2456.2,2455.9,4.0717]
[1730833085812,0.00893642,2456.2,2456.0,4.07164]
[1730833086515,0.00893642,2456.2,2456.1,4.07145]
[1730833086894,0.00893642,2456.2,2456.0,4.07156]
[1730833087185,1.62430967,2456.4,2456.2,4.07131]
[1730833087399,14.05430967,2456.4,2456.2,4.07131]
[1730833087620,0.00893642,2456.2,2456.0,4.07156]
[1730833087780,0.00893642,2456.0,2455.7,4.07214]
[1730833088074,12.43893642,2456.0,2455.7,4.07214]
[1730833090124,12.43,2456.0,2455.7,4.07204]
[1730833090283,0.00893642,2455.9,2455.6,4.15372585]
[1730833090476,0.00893642,2455.9,2455.6,4.07229]
[1730833092703,0.00893642,2455.9,2455.5,4.83078]
[1730833092886,0.00893642,2455.9,2455.5,4.07248]
[1730833093326,4.90349,2455.8,2455.3,7.83298]
[1730833093494,12.43893642,2455.7,2455.4,4.07261]
[1730833094320,12.43893642,2455.7,2455.2,4.07295]
[1730833094636,12.43893642,2455.7,2455.4,4.07265]
[1730833094637,12.43,2455.6,2455.4,4.07265]
[1730833099844,13.29340967,2455.7,2455.4,4.07265]
[1730833101903,0.00893642,2455.5,2455.3,4.07281]
[1730833103046,0.00893642,2455.5,2455.3,4.07274]
[1730833105450,0.77113642,2455.5,2455.3,4.07274]
[1730833107518,0.77113642,2455.5,2455.1,4.07302]
[1730833107932,0.77113642,2455.5,2455.1,8.14608]
[1730833108136,4.84364642,2455.5,2455.1,4.07302]
[1730833108456,5.69811967,2455.5,2455.1,4.07302]
[1730833108750,0.8143,2455.2,2454.9,4.07333]
[1730833108914,0.8143,2455.2,2454.8,4.07364]
[1730833109827,0.00893642,2455.1,2454.8,4.07364]
[1730833110748,0.00893642,2455.1,2454.8,0.08146256]
[1730833110958,0.00893642,2455.1,2454.9,4.07345]
[1730833111642,0.00893642,2455.1,2454.8,4.15511256]
[1730833112229,0.00893642,2455.1,2454.8,0.08146256]
[1730833112736,0.00893642,2455.1,2454.8,4.15510256]
[1730833114721,0.58400639,2455.1,2454.6,4.07382]
[1730833114869,0.00893642,2454.9,2454.6,4.07397]
[1730833115039,0.76513642,2454.9,2454.6,4.07397]
[1730833116969,0.00893642,2455.0,2454.7,0.08147164]
[1730833117262,0.00893642,2455.0,2454.8,4.07355]
[1730833118181,0.00893642,2455.0,2454.7,4.07381]
[1730833122369,0.00893642,2455.0,2454.6,5.74765441]
[1730833122564,0.00893642,2454.8,2454.4,7.07419]
[1730833123795,0.00893642,2454.8,2454.4,11.14842]
[1730833124160,0.00893642,2454.8,2454.5,0.08147444]
[1730833124364,0.8113,2454.9,2454.6,4.07395]
[1730833126111,0.8113,2454.9,2454.5,4.07402]
[1730833126404,0.8113,2454.9,2454.5,8.2295444]
[1730833126709,0.8113,2454.9,2454.5,8.14807]
[1730833127065,0.8113,2454.9,2454.6,0.08147249]
[1730833127270,0.00893642,2455.0,2454.8,4.07365]
[1730833132202,12.43893642,2455.0,2454.8,4.07365]
[1730833132403,12.43893642,2455.0,2454.8,4.07356]
[1730833132801,12.43893642,2455.0,2454.7,0.826]
[1730833132989,12.43893642,2455.0,2454.8,4.07364]
[1730833134784,12.43893642,2455.0,2454.8,8.14722]
[1730833135181,12.43893642,2455.0,2454.8,4.07358]
[1730833136795,12.43893642,2455.0,2454.8,8.14715]
[1730833137403,12.43893642,2455.0,2454.8,4.07357]
[1730833137792,12.43893642,2455.0,2454.8,8.14715]
[1730833138192,12.43,2455.1,2454.8,8.14715]
[1730833138719,12.43,2455.1,2454.8,4.07357]
[1730833138720,0.00893642,2455.0,2454.8,4.07357]
[1730833139797,0.85447325,2455.2,2455.0,4.07331]
[1730833140108,12.43,2455.3,2455.2,4.07298]
[1730833144185,12.43893642,2455.4,2455.3,4.07282]
[1730833144543,12.43893642,2455.4,2455.2,4.07298]
[1730833144544,13.22643642,2455.4,2455.2,4.07298]
[1730833144694,13.22643642,2455.4,2455.2,4.0729]
[1730833144912,13.22643642,2455.4,2455.3,4.07282]
[1730833145383,12.43893642,2455.4,2455.3,4.07282]
[1730833151341,12.43,2455.4,2455.3,4.07282]
[1730833151634,12.43,2455.4,2455.3,4.89022]
[1730833154123,12.43,2455.4,2455.3,4.07282]
[1730833155936,12.43893642,2455.5,2455.3,4.07282]
[1730833156140,12.43,2455.5,2455.4,4.07265]
[1730833156605,12.43,2455.5,2455.4,4.90025]
[1730833158504,12.43,2455.7,2455.6,4.07232]
[1730833164555,13.2134,2455.7,2455.6,4.07232]
[1730833164854,12.43,2455.7,2455.6,4.07232]
[1730833167745,12.43893642,2455.8,2455.6,4.07232]
[1730833167930,12.43893642,2455.8,2455.7,4.07215]
[1730833171858,12.43893642,2455.8,2455.6,4.07224]
[1730833172028,13.76117006,2455.8,2455.6,4.07221]
[1730833172349,13.76117006,2455.8,2455.7,4.07215]
[1730833173951,13.76117006,2455.8,2455.6,4.07221]
[1730833174164,0.8007,2455.7,2455.6,4.07221]
[1730833179387,0.8007,2455.7,2455.5,8.14492]
[1730833179548,0.00893642,2455.6,2455.5,4.07246]
[1730833179748,12.43893642,2455.6,2455.4,4.07264]
[1730833180060,12.43893642,2455.6,2455.2,0.7972]
[1730833180266,12.43893642,2455.6,2455.2,4.07296]
[1730833180267,0.00893642,2455.4,2455.2,4.07296]
[1730833180473,0.82373642,2455.4,2455.2,8.14587]
[1730833180787,0.00893642,2455.2,2455.0,4.07317]
[1730833181349,0.782,2455.1,2455.0,4.07317]
[1730833183080,0.00893642,2455.2,2455.1,4.07315]
[1730833188943,0.00893642,2455.2,2455.0,4.07317]
[1730833189185,0.00893642,2455.2,2455.0,8.1464]
[1730833189985,0.00893642,2455.2,2455.0,4.07317]
[1730833190471,0.00893642,2455.2,2454.9,4.07348]
[1730833191442,12.43893642,2455.2,2454.9,4.07348]
[1730833194059,0.00893642,2455.0,2454.6,4.87886]
[1730833194484,0.00893642,2455.0,2454.8,4.07349]
[1730833196102,0.00893642,2455.0,2454.7,4.07381]
[1730833196276,0.00893642,2455.0,2454.7,4.07374]
[1730833196472,0.84113642,2455.0,2454.7,4.07374]
[1730833197215,0.84113642,2455.0,2454.7,8.14747]
[1730833197379,13.27113642,2455.0,2454.7,8.14747]
[1730833197698,13.27113642,2455.0,2454.7,4.07373]
[1730833198504,13.27113642,2455.0,2454.7,8.14746]
[1730833198865,13.27113642,2455.0,2454.8,4.07358]
[1730833199262,13.27113642,2455.0,2454.7,5.74753441]
[1730833199473,13.27113642,2455.0,2454.9,4.07348]
[1730833199474,12.43893642,2455.0,2454.9,4.07348]
[1730833200196,0.00893642,2455.0,2454.9,4.07348]
[1730833201904,0.00893642,2455.0,2454.9,6.57988441]
[1730833202465,12.43,2455.1,2455.0,4.07331]
[1730833203304,0.00893642,2455.1,2455.0,4.07331]
[1730833203507,12.43,2455.3,2455.1,4.07313]
[1730833203912,12.43,2455.3,2455.2,4.90398]
[1730833204859,0.00893642,2455.2,2454.9,4.07338]
[1730833204976,0.77043642,2455.2,2454.9,4.07338]
[1730833205300,0.77043642,2455.2,2455.0,4.07321]
[1730833205506,0.77043642,2455.2,2455.1,4.07315]
[1730833205507,0.00893642,2455.2,2455.1,4.07315]
[1730833206015,0.00893642,2455.2,2455.1,4.89415]
[1730833206626,12.43,2455.3,2455.1,4.89415]
[1730833206627,12.43,2455.3,2455.2,4.07298]
[1730833208019,0.00893642,2455.2,2455.1,4.89415]
[1730833209220,12.43,2455.2,2455.1,4.89415]
[1730833210316,12.43,2455.2,2455.1,4.97560431]
[1730833210517,12.43,2455.2,2455.1,4.89415]
[1730833212561,13.28447325,2455.8,2455.7,4.07215]
[1730833212746,12.43,2455.8,2455.7,4.07215]
[1730833214887,12.43,2455.9,2455.8,4.07199]
[1730833215027,0.00893642,2456.1,2456.0,4.07166]
[1730833221103,12.43,2456.3,2456.1,4.85909]
[1730833221374,1.70718289,2456.6,2456.1,4.85909]
[1730833221375,12.43,2456.6,2456.5,4.07083]
[1730833222152,0.00893642,2456.7,2456.6,4.07066]
[1730833222339,12.43893642,2456.7,2456.6,4.07066]
[1730833225641,0.00893642,2456.3,2456.2,4.07127]
[1730833225840,0.00893642,2456.3,2456.1,4.07138]
[1730833226151,12.43893642,2456.3,2456.1,4.07138]
[1730833226363,12.43893642,2456.3,2456.2,4.07132]
[1730833226939,12.43,2456.3,2456.2,4.07132]
[1730833227134,12.43,2456.3,2456.2,4.88422]
[1730833229680,12.43,2456.3,2456.2,4.07132]
[1730833230049,0.00893642,2456.5,2456.2,4.07132]
[1730833230269,0.00893642,2456.5,2456.0,0.7989]
[1730833230480,0.00893642,2456.5,2456.2,4.07132]
[1730833230745,0.00893642,2456.5,2456.4,4.07099]
[1730833230952,0.00893642,2456.5,2456.3,4.07106]
[1730833231956,0.00893642,2456.2,2456.1,4.07141]
[1730833232160,0.00893642,2456.2,2455.7,7.07205]
[1730833232161,0.00893642,2456.2,2455.9,7.07174]
[1730833232350,0.00893642,2456.2,2455.6,4.07222]
[1730833232351,0.00893642,2455.8,2455.6,4.07222]
[1730833232547,0.00893642,2455.8,2455.6,8.14445]
[1730833232959,0.00893642,2455.8,2455.7,4.07215]
[1730833234450,0.00893642,2455.8,2455.6,8.14444]
[1730833234662,0.00893642,2455.8,2455.6,4.07222]
[1730833235001,0.00893642,2455.8,2455.6,8.14445]
[1730833235578,0.00893642,2455.8,2455.6,4.07222]
[1730833235793,0.00893642,2455.8,2455.4,4.88825]
[1730833235998,0.00893642,2455.6,2455.4,4.07255]
[1730833236923,0.00893642,2455.6,2455.5,4.07249]
[1730833237110,12.43,2455.7,2455.6,4.82302]
[1730833237641,12.43,2455.7,2455.6,11.70395432]
[1730833238294,0.00893642,2456.4,2456.3,4.07116]
[1730833238487,12.43893642,2456.4,2456.3,4.07116]
[1730833238740,12.43893642,2456.4,2456.1,4.87779]
[1730833238928,0.00893642,2456.2,2455.9,4.07171]
[1730833239138,0.00893642,2456.2,2456.0,4.07165]
[1730833239638,0.00893642,2456.2,2456.1,4.07149]
[1730833240131,0.00893642,2456.2,2456.0,8.14321]
[1730833240830,0.00893642,2456.2,2456.1,4.07149]
[1730833241401,12.43893642,2456.4,2456.2,4.07122]
[1730833241604,12.43893642,2456.4,2456.2,4.07132]
[1730833241825,12.43,2456.3,2456.2,4.07132]
[1730833242031,0.00893642,2456.1,2456.0,4.0715]
[1730833243266,0.00893642,2456.1,2455.9,4.07182]
[1730833243419,0.00893642,2456.1,2456.0,4.07166]
[1730833244512,12.43893642,2456.3,2456.2,4.07132]
[1730833244716,12.43893642,2456.3,2456.1,4.07148]
[1730833244947,12.43893642,2456.3,2456.2,4.07132]
[1730833250163,0.00893642,2456.1,2456.0,4.07165]
[1730833250393,0.80003642,2456.1,2456.0,4.07165]
[1730833250577,0.80003642,2456.1,2455.9,4.07172]
[1730833250883,0.80003642,2456.1,2455.9,8.14346]
[1730833251077,0.80003642,2456.1,2456.0,4.07166]
[1730833251284,12.43893642,2456.3,2456.2,4.07132]
[1730833253022,12.43893642,2456.3,2456.0,0.8216]
[1730833253181,13.76158006,2456.3,2456.2,4.07132]
[1730833253705,1.33158006,2456.3,2456.2,4.07132]
[1730833254213,0.00893642,2456.3,2456.2,4.07132]
[1730833255828,0.00893642,2456.3,2455.8,0.7956]
[1730833256114,0.00893642,2455.6,2455.4,4.07252]
[1730833256525,0.00893642,2455.6,2455.3,4.0728]
[1730833256678,0.00893642,2455.6,2455.4,4.07265]
[1730833259233,0.00893642,2455.6,2455.2,0.85343469]
[1730833259389,0.00893642,2455.6,2455.2,2.60811189]
[1730833259584,12.43893642,2455.6,2455.3,0.70187088]
[1730833259815,12.43893642,2455.6,2455.3,1.7546772]
[1730833260221,0.00893642,2455.4,2455.3,1.7546772]
[1730833260428,13.26633642,2455.4,2455.3,0.70187088]
[1730833260724,13.26633642,2455.4,2455.1,0.85343469]
[1730833260884,13.26633642,2455.4,2455.1,2.60876964]
[1730833261080,13.26633642,2455.4,2455.2,0.70213398]
[1730833261322,15.17328133,2455.4,2455.2,0.70213398]
[1730833261837,15.17328133,2455.4,2455.0,0.85343469]
[1730833262144,15.17328133,2455.4,2455.0,6.68219516]
[1730833262432,0.00893642,2455.2,2455.1,0.70218419]
[1730833263335,0.00893642,2455.2,2455.0,1.05358278]
[1730833263537,0.00893642,2455.2,2455.0,1.75603308]
[1730833264041,0.00893642,2455.2,2455.0,5.82932308]
[1730833264244,0.00893642,2455.2,2455.1,4.07315]
[1730833264540,0.00893642,2455.2,2455.0,4.07323]
[1730833264697,0.00893642,2455.3,2455.0,4.07322]
[1730833265095,0.00893642,2455.3,2455.2,4.07298]
[1730833266714,0.00893642,2455.3,2455.1,8.14619]
[1730833266910,0.00893642,2455.3,2455.1,4.07306]
[1730833267111,0.00893642,2455.1,2454.8,1.61823469]
[1730833267438,0.00893642,2455.1,2454.9,4.77539031]
[1730833267603,0.00893642,2455.1,2454.9,4.07338]
[1730833268004,12.43,2455.3,2455.2,4.07298]
[1730833269969,12.43,2455.3,2455.2,4.87838]
[1730833270109,12.43,2455.3,2455.2,4.95983223]
[1730833270313,0.00893642,2455.8,2455.2,4.95983223]
[1730833270314,12.43893642,2455.8,2455.7,4.07215]
[1730833270709,0.00893642,2455.8,2455.7,4.07215]
[1730833271827,0.00893642,2455.8,2455.6,8.95]
[1730833272026,0.00893642,2455.8,2455.6,8.1446]
[1730833272236,0.00893642,2455.8,2455.7,4.07215]
[1730833275155,0.00893642,2455.8,2455.6,8.14454]
[1730833275358,0.00893642,2455.8,2455.7,4.07215]
[1730833276148,0.00893642,2455.8,2455.6,4.07224]
[1730833276354,0.00893642,2455.6,2455.5,4.07241]
[1730833276555,0.00893642,2455.6,2455.4,4.07253]
[1730833276758,0.00893642,2455.7,2455.5,4.07249]
[1730833276960,0.00893642,2455.7,2455.6,4.07232]
[1730833277262,0.00893642,2455.5,2455.4,4.07256]
[1730833277447,0.00893642,2455.5,2455.3,4.07282]
[1730833277654,0.00893642,2455.5,2455.3,4.07272]
[1730833278258,0.7603,2455.4,2455.2,4.07298]
[1730833278473,13.1903,2455.4,2455.2,4.07298]
[1730833279369,13.1903,2455.4,2455.2,4.0729]
[1730833279727,13.1903,2455.4,2455.2,8.1458]
[1730833280130,13.1903,2455.4,2455.1,4.07305]
[1730833280131,0.00893642,2455.3,2455.1,4.07305]
[1730833281378,0.00893642,2455.3,2455.2,4.07298]
[1730833282277,0.00893642,2455.3,2455.1,4.07312]
[1730833282768,0.00893642,2455.3,2455.2,4.07298]
[1730833283346,12.43893642,2455.3,2455.2,4.07298]
[1730833283749,12.43893642,2455.3,2455.1,4.07312]
[1730833283947,12.43,2455.3,2455.2,8.72861432]
[1730833284267,12.43,2455.3,2455.2,13.48424971]
[1730833284837,12.359,2455.3,2455.2,12.78208698]
[1730833285042,12.359,2455.3,2455.2,13.48440209]
[1730833285742,12.359,2455.3,2455.2,9.60346777]
[1730833289285,0.00893642,2455.8,2455.6,4.07216]
[1730833289472,0.00893642,2455.8,2455.6,4.07229]
[1730833289666,0.00893642,2455.8,2455.7,4.07215]
[1730833291187,0.00893642,2455.8,2455.6,4.07223]
[1730833291591,0.00893642,2455.8,2455.7,4.07215]
[1730833293858,0.00393642,2455.8,2455.7,4.07215]
[1730833296503,0.85776426,2455.8,2455.7,4.07215]
[1730833296662,0.00393642,2455.8,2455.7,4.07215]
[1730833297097,0.85776426,2455.8,2455.7,4.07215]
[1730833297875,0.00393642,2455.8,2455.7,4.07215]
[1730833298087,0.85776426,2455.8,2455.7,4.07215]
[1730833298584,0.7629,2455.7,2455.6,8.14445]
[1730833298789,0.85441058,2455.7,2455.6,4.07222]
[1730833299170,0.858347,2455.8,2455.7,4.07215]
[1730833299507,0.00393642,2455.8,2455.7,4.07215]
[1730833299817,1.28467819,2455.8,2455.7,4.07215]
[1730833300015,0.00393642,2455.8,2455.7,4.07215]
[1730833300370,0.85846639,2455.8,2455.7,4.07215]
[1730833300766,0.85859284,2455.8,2455.7,4.07215]
[1730833300997,0.85465642,2455.8,2455.7,4.07215]
[1730833301178,0.85465642,2455.9,2455.8,4.07199]
[1730833301378,1.28074177,2456.0,2455.9,4.07182]
[1730833301379,0.85465642,2456.0,2455.9,4.07182]
[1730833301819,0.85465642,2456.0,2455.9,4.88122]
[1730833305982,0.85465642,2456.0,2455.9,4.07182]
[1730833319150,0.85465642,2456.1,2456.0,4.07166]
[1730833319349,13.21365642,2456.2,2456.1,4.07149]
[1730833319520,13.21326602,2456.2,2456.1,4.07149]
[1730833320927,13.63974177,2456.2,2456.1,4.07149]
[1730833321117,13.21323418,2456.2,2456.1,4.07149]
[1730833321652,12.359,2456.2,2456.1,4.07149]
[1730833322668,13.21319137,2456.2,2456.1,4.07149]
[1730833323921,12.359,2456.2,2456.1,4.07149]
[1730833324123,13.21316998,2456.2,2456.1,4.07149]
[1730833324458,12.359,2456.2,2456.1,4.07149]
[1730833325478,13.21317515,2456.2,2456.1,4.07149]
[1730833326483,0.00393642,2456.1,2456.0,4.07166]
[1730833326768,0.00393642,2456.1,2455.9,4.07181]
[1730833326769,1.28519915,2456.1,2455.9,4.07181]
[1730833326971,0.85426983,2456.0,2455.8,4.07198]
[1730833327173,0.85426983,2456.0,2455.3,0.85237449]
[1730833327174,1.63290625,2455.9,2455.6,4.0723]
[1730833327375,0.85439249,2455.8,2455.7,4.07215]
[1730833327882,0.00393642,2455.7,2455.6,4.0723]
[1730833328031,0.85832891,2455.7,2455.6,4.0723]
[1730833328234,0.00393642,2455.7,2455.6,4.0723]
[1730833329740,0.85439249,2455.8,2455.6,4.0723]
[1730833329943,0.85439249,2455.9,2455.8,4.07199]
[1730833330590,0.85439249,2455.9,2455.7,4.07206]
[1730833330891,0.85439249,2455.9,2455.8,4.07199]
[1730833331455,0.00393642,2455.8,2455.7,4.07206]
[1730833331659,0.85832891,2455.8,2455.7,4.07206]
[1730833332298,0.7481264,2455.8,2455.7,4.07206]
[1730833332742,0.7481264,2455.8,2455.6,4.0723]
[1730833333009,0.7481264,2455.8,2455.6,8.1446]
[1730833333209,0.7481264,2455.8,2455.6,4.0723]
[1730833333372,0.7481264,2455.8,2455.7,4.07215]
[1730833336478,0.7481264,2455.8,2455.4,4.07254]
[1730833336660,0.7614,2455.7,2455.4,8.14511]
[1730833336902,0.7614,2455.7,2455.5,4.0724]
[1730833337103,13.1071264,2455.8,2455.7,4.07215]
[1730833337601,12.359,2455.8,2455.7,4.07215]
[1730833339511,12.359,2455.8,2455.7,4.88365]
[1730833339661,12.359,2456.0,2455.9,4.07182]
[1730833339862,13.64026273,2456.2,2456.0,4.07166]
[1730833340185,13.64026273,2456.2,2456.1,4.07149]
[1730833340807,13.64026273,2456.2,2456.0,4.07166]
[1730833341173,13.64026273,2456.2,2456.0,4.07157]
[1730833341514,13.64026273,2456.2,2456.0,4.07156]
[1730833341877,13.64026273,2456.2,2456.0,8.14313]
[1730833342382,19.96293951,2456.2,2455.6,4.07223]
[1730833342586,1.65733174,2455.8,2455.5,4.07249]
[1730833342813,1.65733174,2455.8,2455.5,8.14498]
[1730833343784,0.85423174,2455.7,2455.6,4.07232]
[1730833344318,1.65733174,2455.8,2455.5,4.07249]
[1730833344626,1.65733174,2455.8,2455.3,7.8641]
[1730833344627,0.85423174,2455.7,2455.3,7.07267]
[1730833345341,0.85423174,2455.7,2455.4,4.07264]
[1730833345912,12.359,2455.6,2455.4,4.07264]
[1730833346113,12.359,2455.6,2455.5,4.87379]
[1730833346926,12.359,2455.6,2455.5,4.07249]
[1730833351560,12.359,2455.7,2455.6,4.07232]
[1730833354868,12.359,2455.7,2455.6,4.89242]
[1730833355018,0.85423174,2456.2,2456.1,4.07149]
[1730833355423,13.64034761,2456.3,2456.1,4.07149]
[1730833355424,12.359,2456.3,2456.2,4.07132]
[1730833355696,0.85423174,2456.4,2456.2,4.07132]
[1730833355697,13.21323174,2456.4,2456.3,4.07116]
[1730833356055,0.85423174,2456.4,2456.3,4.07116]
[1730833356258,12.359,2456.5,2456.3,4.07116]
[1730833356259,13.21323174,2456.5,2456.4,4.07099]
[1730833357688,12.359,2456.5,2456.4,4.90309]
[1730833359717,0.7822,2456.4,2456.3,4.07104]
[1730833360181,13.21323174,2456.5,2456.4,4.07099]
[1730833360582,13.21323174,2456.5,2456.3,4.07104]
[1730833360774,13.21323174,2456.5,2456.2,4.07132]
[1730833360974,14.90901471,2456.5,2456.2,4.07132]
[1730833361800,0.7549,2456.4,2456.1,8.14276]
[1730833361980,0.7549,2456.4,2455.9,7.07171]
[1730833362314,12.359,2456.5,2456.4,4.07099]
[1730833363679,12.359,2456.5,2456.3,4.07107]
[1730833364197,12.359,2456.5,2456.4,4.07099]
[1730833365271,13.75581317,2456.5,2456.2,4.07129]
[1730833365491,0.764,2456.4,2456.3,4.07116]
[1730833366074,0.764,2456.4,2456.0,4.07153]
[1730833366301,13.123,2456.4,2456.0,4.07153]
[1730833366716,13.123,2456.4,2456.0,8.1431]
[1730833366927,1.94449549,2456.3,2456.0,4.07153]
[1730833367578,1.94449549,2456.3,2456.0,8.1431]
[1730833368082,1.94449549,2456.3,2456.1,4.0714]
[1730833369896,1.94449549,2456.3,2456.0,8.14308]
[1730833370105,1.94449549,2456.3,2455.8,4.07187]
[1730833370299,1.50674955,2456.2,2455.8,4.07183]
[1730833370484,0.8282,2456.1,2455.6,7.07221]
[1730833370692,13.1872,2456.1,2455.7,4.07207]
[1730833370993,0.8282,2456.0,2455.7,4.07207]
[1730833371225,2.70472796,2456.0,2455.6,4.07221]
[1730833371912,2.70472796,2456.0,2455.7,4.0721]
[1730833373120,2.70472796,2456.0,2455.4,4.88303]
[1730833373332,6.77646796,2456.0,2455.5,4.07248]
[1730833373522,0.8189,2455.8,2455.2,4.14375782]
[1730833373938,1.67313174,2455.7,2455.0,4.8371]
[1730833374173,1.67313174,2455.7,2455.6,4.07232]
[1730833374174,0.85423174,2455.7,2455.6,4.07232]
[1730833374309,0.85423174,2455.9,2455.8,4.07199]
[1730833374509,1.62013174,2456.1,2455.9,4.07182]
[1730833375014,1.62013174,2456.1,2455.8,4.07199]
[1730833375532,1.62013174,2456.1,2455.9,4.07181]
[1730833376037,0.85423174,2456.0,2455.8,4.07199]
[1730833377157,0.85423174,2456.0,2455.7,4.07215]
[1730833377527,0.85423174,2456.0,2455.8,4.07193]
[1730833377913,0.85423174,2456.0,2455.7,4.07215]
[1730833378439,0.85423174,2456.0,2455.7,8.14422]
[1730833378640,0.85423174,2456.0,2455.7,4.07207]
[1730833379861,0.85423174,2456.0,2455.5,8.14475]
[1730833380065,0.8024,2455.8,2455.6,4.0723]
[1730833380388,0.85423174,2455.9,2455.5,4.84676]
[1730833380525,2.08374761,2456.0,2455.5,4.84676]
[1730833380526,1.65663174,2456.0,2455.7,8.144]
[1730833381047,0.85423174,2455.9,2455.7,8.144]
[1730833381365,1.65663174,2456.0,2455.7,8.144]
[1730833381694,1.65663174,2456.0,2455.7,4.072]
[1730833381870,1.65663174,2456.0,2455.7,8.14406]
[1730833382225,1.65663174,2456.0,2455.7,4.072]
[1730833382462,1.65663174,2456.0,2455.8,4.07187]
[1730833382658,1.65663174,2456.0,2455.6,4.07216]
[1730833383032,4.07192,2455.9,2455.2,0.7705]
[1730833383238,1.68103174,2455.8,2455.5,4.07238]
[1730833383526,1.68103174,2455.8,2455.6,4.07231]
[1730833384233,0.8268,2455.8,2455.7,4.07215]
[1730833384433,0.8268,2455.8,2455.6,4.07231]
[1730833385241,0.8268,2455.8,2455.4,4.07255]
[1730833385470,2.51235377,2455.8,2455.4,4.07255]
[1730833385986,4.07216,2455.7,2455.0,4.07321]
[1730833386191,1.60443174,2455.6,2455.2,4.07296]
[1730833387081,0.7502,2455.6,2455.5,4.07249]
[1730833387998,0.7502,2455.6,2455.4,4.07265]
[1730833388196,0.85423174,2455.7,2455.5,4.07249]
[1730833388407,1.28134761,2455.8,2455.5,4.07249]
[1730833388408,0.85423174,2455.8,2455.5,4.07249]
[1730833388571,1.64193174,2455.9,2455.6,4.07232]
[1730833389215,0.85423174,2455.8,2455.6,4.07232]
[1730833389559,1.64193174,2455.9,2455.6,4.07232]
[1730833389974,0.85423174,2455.8,2455.6,4.07232]
[1730833390605,0.85423174,2455.8,2455.5,4.07249]
[1730833390965,1.64193174,2455.9,2455.5,8.14498]
[1730833391166,1.64193174,2455.9,2455.7,4.07206]
[1730833391363,0.7877,2455.9,2455.8,4.07199]
[1730833391978,0.85423174,2456.0,2455.8,4.07199]
[1730833392177,0.85423174,2456.1,2455.9,4.07182]
[1730833392406,12.359,2456.0,2455.6,0.8325]
[1730833392706,12.359,2456.0,2455.9,4.07182]
[1730833394126,12.359,2456.1,2456.0,4.07166]
[1730833394309,12.359,2456.2,2456.1,4.07149]
[1730833394503,12.359,2456.2,2456.0,4.85096]
[1730833394703,12.359,2456.2,2456.1,4.07149]
[1730833398935,12.359,2456.3,2456.2,4.07132]
[1730833402142,12.359,2456.3,2456.1,4.07149]
[1730833402371,12.359,2456.3,2456.2,4.07132]
[1730833404698,14.49902317,2456.3,2456.1,4.07142]
[1730833406389,14.49902317,2456.3,2456.2,4.07132]
[1730833409495,14.49902317,2456.3,2455.3,0.86237449]
[1730833409496,0.7949,2456.2,2455.4,0.7664]
[1730833409692,0.7949,2456.2,2456.0,4.07165]
[1730833409693,12.359,2456.1,2456.0,4.07165]
[1730833413826,12.359,2456.1,2456.0,4.87755]
[1730833414734,12.359,2456.5,2456.4,4.87689]
[1730833414884,12.359,2456.5,2456.4,6.54935473]
[1730833416037,12.359,2456.7,2456.6,4.89836]
[1730833416200,12.359,2457.1,2456.7,1.67246473]
[1730833416386,12.359,2457.1,2457.0,4.07]
[1730833417130,12.359,2457.2,2457.1,4.06983]
[1730833417294,12.359,2457.2,2457.0,4.8571]
[1730833417295,12.359,2457.4,2457.3,4.0695]
[1730833418192,12.359,2457.4,2457.2,4.06965]
[1730833418387,13.6801888,2457.4,2457.2,4.06965]
[1730833418711,13.6801888,2457.4,2457.0,4.85694]
[1730833418908,13.6801888,2457.4,2457.0,4.06984]
[1730833419359,13.6801888,2457.4,2457.1,4.06975]
[1730833419860,0.7868,2457.3,2456.9,4.07004]
[1730833420060,2.15481888,2457.3,2456.9,4.07004]
[1730833420216,2.15481888,2457.3,2456.8,4.07023]
[1730833420416,6.22434888,2457.3,2456.8,4.07023]
[1730833420759,7.07721692,2457.3,2456.8,4.07028]
[1730833420912,2.48268357,2457.2,2456.8,4.07028]
[1730833421116,0.7793,2457.1,2456.5,4.07071]
[1730833421356,12.359,2457.0,2456.6,4.07063]
[1730833421723,12.359,2456.9,2456.5,4.07067]
[1730833422120,12.359,2456.9,2456.5,8.1414]
[1730833422649,14.079823,2456.9,2456.5,4.07067]
[1730833422956,0.7569,2456.8,2456.3,8.1421]
[1730833423258,0.7569,2456.8,2456.3,4.07104]
[1730833423559,0.7569,2456.8,2456.4,4.07091]
[1730833423765,2.6475923,2456.8,2456.4,4.07091]
[1730833423913,2.6475923,2456.8,2456.2,4.07116]
[1730833423914,6.7179423,2456.8,2456.2,4.07116]
[1730833424658,4.07052,2456.7,2456.2,4.07116]
[1730833424873,4.07084,2456.5,2456.0,4.07156]
[1730833425163,0.7893,2456.3,2455.8,4.07187]
[1730833425323,1.61166682,2456.2,2455.8,4.07187]
[1730833425521,1.61166682,2456.2,2455.8,8.14377]
[1730833425721,5.68307682,2456.2,2455.6,4.07222]
[1730833425938,17.1952,2456.1,2455.6,4.07222]
[1730833427229,17.1952,2456.1,2455.6,8.14445]
[1730833427436,19.48300468,2456.1,2455.6,4.07222]
[1730833428371,23.55463468,2456.1,2455.6,4.07222]
[1730833428581,4.07185,2455.9,2455.4,4.07255]
[1730833428746,12.359,2455.8,2455.4,4.07255]
[1730833428950,0.7906,2455.7,2455.2,4.90138]
[1730833429162,0.7906,2455.7,2455.2,4.07287]
[1730833429476,0.7906,2455.7,2455.4,4.07251]
[1730833430274,0.7906,2455.7,2455.4,8.14506]
[1730833430478,0.7906,2455.7,2455.4,4.07251]